[Event "*** SCC Grand Prix: Titled Tuesday Blitz"]
[Site "Chess.com"]
[Date "2020.07.14"]
[Round "4"]
[White "Firouzja2003"]
[Black "nrvisakh"]
[Result "1-0"]
[WhiteElo "3078"]
[BlackElo "2774"]
[TimeControl "180+1"]
[EndTime "10:39:42 PDT"]
[Termination "Firouzja2003 won on time"]

1. d4 {[%clk 0:03:00.9]} 1... Nf6 {[%clk 0:02:59.6]} 2. c4 {[%clk 0:03:00.6]}
2... e6 {[%clk 0:02:59.9]} 3. Nf3 {[%clk 0:03:00]} 3... b6 {[%clk 0:02:58.4]} 4.
g3 {[%clk 0:02:57.4]} 4... Bb7 {[%clk 0:02:58.5]} 5. Bg2 {[%clk 0:02:56.2]} 5...
Be7 {[%clk 0:02:58.8]} 6. O-O {[%clk 0:02:55.2]} 6... O-O {[%clk 0:02:58.9]} 7.
Nc3 {[%clk 0:02:52.5]} 7... Ne4 {[%clk 0:02:58.1]} 8. Bd2 {[%clk 0:02:50.5]}
8... f5 {[%clk 0:02:56.4]} 9. d5 {[%clk 0:02:41.6]} 9... Bf6 {[%clk 0:02:49.1]}
10. Rc1 {[%clk 0:02:37.5]} 10... Na6 {[%clk 0:02:43.5]} 11. Qc2 {[%clk
0:02:21.5]} 11... Nac5 {[%clk 0:02:34.6]} 12. Rfd1 {[%clk 0:02:17]} 12... Qe8
{[%clk 0:02:27.2]} 13. Nb5 {[%clk 0:02:09.6]} 13... Nxd2 {[%clk 0:01:34]} 14.
Nxd2 {[%clk 0:02:06.5]} 14... Qb8 {[%clk 0:01:28.2]} 15. b4 {[%clk 0:02:00.4]}
15... Na6 {[%clk 0:01:27.5]} 16. a3 {[%clk 0:01:59.3]} 16... c6 {[%clk
0:01:26.5]} 17. Nc3 {[%clk 0:01:57.6]} 17... cxd5 {[%clk 0:01:15.2]} 18. cxd5
{[%clk 0:01:58.5]} 18... Rc8 {[%clk 0:01:14.9]} 19. Qd3 {[%clk 0:01:55.8]} 19...
Nc7 {[%clk 0:01:06.3]} 20. Nc4 {[%clk 0:01:24.9]} 20... Bxc3 {[%clk 0:00:39]}
21. Nd6 {[%clk 0:01:24.2]} 21... Nxd5 {[%clk 0:00:39]} 22. Nxc8 {[%clk
0:01:21.5]} 22... Qxc8 {[%clk 0:00:39.1]} 23. Bxd5 {[%clk 0:01:20.1]} 23... Bxd5
{[%clk 0:00:38.6]} 24. Rxc3 {[%clk 0:01:19.6]} 24... Qe8 {[%clk 0:00:37.2]} 25.
Rdc1 {[%clk 0:01:18.3]} 25... h6 {[%clk 0:00:35.6]} 26. Rc7 {[%clk 0:01:17.4]}
26... a6 {[%clk 0:00:23.7]} 27. Qc3 {[%clk 0:01:11.2]} 27... Kh7 {[%clk
0:00:18.3]} 28. Qe5 {[%clk 0:01:08.6]} 28... b5 {[%clk 0:00:13.3]} 29. Rd1
{[%clk 0:01:04.8]} 29... Rd8 {[%clk 0:00:08.8]} 30. f3 {[%clk 0:00:55.5]} 30...
Qg6 {[%clk 0:00:05.8]} 31. Kf2 {[%clk 0:00:47]} 31... Qh5 {[%clk 0:00:05.1]} 32.
h4 {[%clk 0:00:46.1]} 32... Qf7 {[%clk 0:00:05.4]} 33. Ra7 {[%clk 0:00:39.7]}
33... Rc8 {[%clk 0:00:05.3]} 34. Rd2 {[%clk 0:00:31.4]} 34... Rc6 {[%clk
0:00:04.1]} 35. Rd4 {[%clk 0:00:24.4]} 35... Rc2 {[%clk 0:00:02.9]} 36. Qe3
{[%clk 0:00:12.8]} 36... Bc4 {[%clk 0:00:02.7]} 37. Rdxd7 {[%clk 0:00:11.8]} 1-0

[Event "*** SCC Grand Prix: Titled Tuesday Blitz"]
[Site "Chess.com"]
[Date "2020.07.14"]
[Round "4"]
[White "Matibar"]
[Black "Colchonero64"]
[Result "1/2-1/2"]
[WhiteElo "2682"]
[BlackElo "2932"]
[TimeControl "180+1"]
[EndTime "10:39:43 PDT"]
[Termination "Game drawn by repetition"]

1. e4 {[%clk 0:02:56.1]} 1... c5 {[%clk 0:02:58.9]} 2. Nf3 {[%clk 0:02:55.4]}
2... e6 {[%clk 0:02:58.8]} 3. d4 {[%clk 0:02:54.2]} 3... cxd4 {[%clk 0:02:59.2]}
4. Nxd4 {[%clk 0:02:55.1]} 4... a6 {[%clk 0:02:59.6]} 5. Nc3 {[%clk 0:02:53.8]}
5... b5 {[%clk 0:02:57.6]} 6. Bd3 {[%clk 0:02:51.6]} 6... Qb6 {[%clk 0:02:57.4]}
7. Nf3 {[%clk 0:02:44.8]} 7... Qc7 {[%clk 0:02:56.9]} 8. O-O {[%clk 0:02:35.3]}
8... Bb7 {[%clk 0:02:56.7]} 9. e5 {[%clk 0:02:32.6]} 9... f5 {[%clk 0:02:54.2]}
10. Re1 {[%clk 0:02:21.5]} 10... Be7 {[%clk 0:02:43.4]} 11. Nd4 {[%clk
0:02:21.2]} 11... g6 {[%clk 0:02:41.7]} 12. Bf4 {[%clk 0:02:04.8]} 12... Nc6
{[%clk 0:02:36.4]} 13. Nxf5 {[%clk 0:01:56.2]} 13... gxf5 {[%clk 0:02:31.6]} 14.
Qh5+ {[%clk 0:01:55.5]} 14... Kf8 {[%clk 0:02:27.5]} 15. Bxf5 {[%clk 0:01:42.3]}
15... Nd4 {[%clk 0:01:36.7]} 16. Bxh7 {[%clk 0:01:02.9]} 16... Nf5 {[%clk
0:01:27.3]} 17. Qg6 {[%clk 0:00:41.5]} 17... Bb4 {[%clk 0:00:58.3]} 18. Ne4
{[%clk 0:00:27.7]} 18... Bxe1 {[%clk 0:00:37.3]} 19. Rxe1 {[%clk 0:00:17]} 19...
Bxe4 {[%clk 0:00:28.4]} 20. Rxe4 {[%clk 0:00:13.5]} 20... d5 {[%clk 0:00:21.1]}
21. Bxg8 {[%clk 0:00:13.4]} 21... Rxg8 {[%clk 0:00:17.3]} 22. Qxe6 {[%clk
0:00:13.5]} 22... dxe4 {[%clk 0:00:10.7]} 23. Qxf5+ {[%clk 0:00:13.7]} 23... Qf7
{[%clk 0:00:10.1]} 24. Qxe4 {[%clk 0:00:13]} 24... Rd8 {[%clk 0:00:09.6]} 25. h3
{[%clk 0:00:08.4]} 25... Qg6 {[%clk 0:00:08.8]} 26. Qf3 {[%clk 0:00:07.9]} 26...
Ke8 {[%clk 0:00:08.7]} 27. Kh2 {[%clk 0:00:07.8]} 27... Qe6 {[%clk 0:00:06.6]}
28. Bg3 {[%clk 0:00:07.8]} 28... Kd7 {[%clk 0:00:06.5]} 29. Qb7+ {[%clk
0:00:07.5]} 29... Ke8 {[%clk 0:00:06.6]} 30. b3 {[%clk 0:00:08]} 30... Rg6
{[%clk 0:00:05.7]} 31. Qe4 {[%clk 0:00:06.6]} 31... Rd7 {[%clk 0:00:05.2]} 32.
c4 {[%clk 0:00:06.8]} 32... bxc4 {[%clk 0:00:04.6]} 33. bxc4 {[%clk 0:00:07.7]}
33... Kf7 {[%clk 0:00:05]} 34. Qf3+ {[%clk 0:00:07.4]} 34... Kg8 {[%clk
0:00:04.4]} 35. c5 {[%clk 0:00:08.3]} 35... Rf7 {[%clk 0:00:04]} 36. Qa8+ {[%clk
0:00:08.1]} 36... Kg7 {[%clk 0:00:04.2]} 37. Qe4 {[%clk 0:00:09]} 37... Qf5
{[%clk 0:00:03.5]} 38. Qd4 {[%clk 0:00:09.4]} 38... Qe6 {[%clk 0:00:03.1]} 39.
Qe4 {[%clk 0:00:08.8]} 39... Rd7 {[%clk 0:00:03]} 40. Qh4 {[%clk 0:00:07.6]}
40... Rf7 {[%clk 0:00:02.3]} 41. Qe4 {[%clk 0:00:07.7]} 1/2-1/2

[Event "*** SCC Grand Prix: Titled Tuesday Blitz"]
[Site "Chess.com"]
[Date "2020.07.14"]
[Round "4"]
[White "JesseKraai"]
[Black "Zubrrr"]
[Result "0-1"]
[WhiteElo "2457"]
[BlackElo "2645"]
[TimeControl "180+1"]
[EndTime "10:39:45 PDT"]
[Termination "Zubrrr won by resignation"]

1. d4 {[%clk 0:03:00.9]} 1... f5 {[%clk 0:02:58.6]} 2. Bg5 {[%clk 0:02:59.9]}
2... g6 {[%clk 0:02:58.5]} 3. e3 {[%clk 0:02:58.8]} 3... Bg7 {[%clk 0:02:58.8]}
4. Nc3 {[%clk 0:02:58.4]} 4... h6 {[%clk 0:02:57.5]} 5. Bh4 {[%clk 0:02:57.6]}
5... Nf6 {[%clk 0:02:51.3]} 6. Bd3 {[%clk 0:02:50.3]} 6... d6 {[%clk 0:02:25.7]}
7. Nge2 {[%clk 0:02:48.1]} 7... e5 {[%clk 0:02:20.1]} 8. e4 {[%clk 0:02:33.7]}
8... g5 {[%clk 0:02:16.6]} 9. dxe5 {[%clk 0:02:10.3]} 9... dxe5 {[%clk
0:02:13.6]} 10. Bxg5 {[%clk 0:02:10.3]} 10... hxg5 {[%clk 0:02:12.7]} 11. exf5
{[%clk 0:02:10.6]} 11... Nc6 {[%clk 0:02:05.8]} 12. Ng3 {[%clk 0:02:07.9]} 12...
Bd7 {[%clk 0:01:47.3]} 13. O-O {[%clk 0:02:06.1]} 13... Qe7 {[%clk 0:01:39.1]}
14. Nce4 {[%clk 0:01:58.1]} 14... Nxe4 {[%clk 0:01:32]} 15. Bxe4 {[%clk
0:01:57.5]} 15... O-O-O {[%clk 0:01:31.8]} 16. c3 {[%clk 0:01:55.9]} 16... Kb8
{[%clk 0:01:25]} 17. Qe2 {[%clk 0:01:51.5]} 17... a6 {[%clk 0:01:01.9]} 18. Rad1
{[%clk 0:01:49]} 18... Na7 {[%clk 0:01:01.2]} 19. h3 {[%clk 0:01:27.2]} 19...
Nb5 {[%clk 0:00:59]} 20. Qf3 {[%clk 0:01:10.4]} 20... Nd6 {[%clk 0:00:56.9]} 21.
Rxd6 {[%clk 0:00:53.2]} 21... cxd6 {[%clk 0:00:53.6]} 22. Bxb7 {[%clk
0:00:53.2]} 22... Bb5 {[%clk 0:00:53.7]} 23. Bd5 {[%clk 0:00:40.4]} 23... Bxf1
{[%clk 0:00:53.2]} 24. Kxf1 {[%clk 0:00:40.8]} 24... Rh4 {[%clk 0:00:45]} 25.
Ne4 {[%clk 0:00:36]} 25... Rf4 {[%clk 0:00:39.3]} 26. Qd3 {[%clk 0:00:29.5]}
26... Qa7 {[%clk 0:00:35.1]} 27. Qc4 {[%clk 0:00:21.3]} 27... Qb6 {[%clk
0:00:25.8]} 28. g4 {[%clk 0:00:16.6]} 28... Qb5 {[%clk 0:00:25]} 29. Qxb5+
{[%clk 0:00:15.9]} 29... axb5 {[%clk 0:00:25.9]} 30. Nxg5 {[%clk 0:00:14.1]}
30... Bf6 {[%clk 0:00:15.6]} 31. Ne6 {[%clk 0:00:14.1]} 31... Rh8 {[%clk
0:00:15.4]} 32. Kg2 {[%clk 0:00:13.5]} 32... Kc8 {[%clk 0:00:10.6]} 33. f3
{[%clk 0:00:10.6]} 33... Kd7 {[%clk 0:00:10]} 34. g5 {[%clk 0:00:09.1]} 34...
Bxg5 {[%clk 0:00:09.2]} 35. Nxg5 {[%clk 0:00:08.1]} 35... Rxf5 {[%clk
0:00:07.2]} 36. Be6+ {[%clk 0:00:08.1]} 36... Ke7 {[%clk 0:00:07.7]} 37. Bxf5
{[%clk 0:00:08.5]} 37... Kf6 {[%clk 0:00:08.2]} 38. Ne4+ {[%clk 0:00:06.6]}
38... Kxf5 {[%clk 0:00:08.2]} 39. Nxd6+ {[%clk 0:00:07.4]} 39... Kf4 {[%clk
0:00:08.9]} 40. Nxb5 {[%clk 0:00:08.2]} 40... Rd8 {[%clk 0:00:07.8]} 41. a4
{[%clk 0:00:06.7]} 41... Rd2+ {[%clk 0:00:08.4]} 42. Kf1 {[%clk 0:00:07.2]}
42... Kxf3 {[%clk 0:00:08.8]} 43. Ke1 {[%clk 0:00:07.9]} 43... Rxb2 {[%clk
0:00:08.8]} 44. Nd6 {[%clk 0:00:08.7]} 44... e4 {[%clk 0:00:09.1]} 45. a5 {[%clk
0:00:08.5]} 45... e3 {[%clk 0:00:08.8]} 0-1

[Event "*** SCC Grand Prix: Titled Tuesday Blitz"]
[Site "Chess.com"]
[Date "2020.07.14"]
[Round "4"]
[White "KetiGrant"]
[Black "TioCridineno"]
[Result "1-0"]
[WhiteElo "2395"]
[BlackElo "2152"]
[TimeControl "180+1"]
[EndTime "10:39:45 PDT"]
[Termination "KetiGrant won by resignation"]

1. e4 {[%clk 0:03:00.9]} 1... c5 {[%clk 0:02:59.2]} 2. Nf3 {[%clk 0:03:00.1]}
2... d6 {[%clk 0:02:59.6]} 3. d4 {[%clk 0:02:59.9]} 3... cxd4 {[%clk 0:03:00.2]}
4. Nxd4 {[%clk 0:03:00.7]} 4... Nf6 {[%clk 0:03:00.5]} 5. Nc3 {[%clk 0:03:01]}
5... a6 {[%clk 0:03:01.2]} 6. Be3 {[%clk 0:03:00.7]} 6... e5 {[%clk 0:03:00.8]}
7. Nb3 {[%clk 0:03:00.3]} 7... Be7 {[%clk 0:03:01.4]} 8. f3 {[%clk 0:03:00.3]}
8... Be6 {[%clk 0:03:01.1]} 9. Qd2 {[%clk 0:03:00.5]} 9... h5 {[%clk 0:03:01.5]}
10. O-O-O {[%clk 0:02:58.8]} 10... Nbd7 {[%clk 0:03:00.6]} 11. Bg5 {[%clk
0:02:57.4]} 11... Qc7 {[%clk 0:03:00.1]} 12. h4 {[%clk 0:02:51.7]} 12... Rc8
{[%clk 0:02:59.4]} 13. Kb1 {[%clk 0:02:50.2]} 13... b5 {[%clk 0:02:54.7]} 14.
Bd3 {[%clk 0:02:33.6]} 14... Nb6 {[%clk 0:02:51.9]} 15. Bxf6 {[%clk 0:02:22.8]}
15... gxf6 {[%clk 0:02:42.3]} 16. Ne2 {[%clk 0:01:57.3]} 16... Nc4 {[%clk
0:02:37.8]} 17. Bxc4 {[%clk 0:01:53.8]} 17... bxc4 {[%clk 0:02:36.8]} 18. Nbc1
{[%clk 0:01:46.8]} 18... Rb8 {[%clk 0:02:34.9]} 19. Nc3 {[%clk 0:01:45.3]} 19...
Qa5 {[%clk 0:02:06.2]} 20. Nd5 {[%clk 0:01:38.5]} 20... Qxd2 {[%clk 0:00:48.8]}
21. Rxd2 {[%clk 0:01:37.3]} 21... f5 {[%clk 0:00:46.2]} 22. Ne2 {[%clk
0:01:27.1]} 22... fxe4 {[%clk 0:00:44.7]} 23. fxe4 {[%clk 0:01:24.2]} 23... Rg8
{[%clk 0:00:45.3]} 24. Nec3 {[%clk 0:01:22.4]} 24... Rg3 {[%clk 0:00:42.7]} 25.
Ka1 {[%clk 0:00:54.2]} 25... Kd7 {[%clk 0:00:24.2]} 26. a3 {[%clk 0:00:53.5]}
26... Rbg8 {[%clk 0:00:21.9]} 27. Nxe7 {[%clk 0:00:39.1]} 27... Kxe7 {[%clk
0:00:21.7]} 28. Rhd1 {[%clk 0:00:40]} 28... Rxg2 {[%clk 0:00:21.1]} 29. Rxd6
{[%clk 0:00:39.1]} 29... Rxc2 {[%clk 0:00:20.6]} 30. Rxa6 {[%clk 0:00:38.4]}
30... Rgg2 {[%clk 0:00:20.1]} 31. Ra7+ {[%clk 0:00:36]} 31... Kf8 {[%clk
0:00:20]} 32. Rb7 {[%clk 0:00:35.8]} 32... Rh2 {[%clk 0:00:19.3]} 33. a4 {[%clk
0:00:35.4]} 33... Rxh4 {[%clk 0:00:18.8]} 34. a5 {[%clk 0:00:35.8]} 34... Kg7
{[%clk 0:00:05.9]} 35. a6 {[%clk 0:00:35.6]} 35... Bc8 {[%clk 0:00:06.5]} 36.
Rb6 {[%clk 0:00:33.4]} 36... Bxa6 {[%clk 0:00:05.8]} 37. Rxa6 {[%clk 0:00:33.1]}
37... Rhh2 {[%clk 0:00:06]} 38. Rb6 {[%clk 0:00:32.8]} 38... h4 {[%clk
0:00:06.1]} 39. Rg1+ {[%clk 0:00:30.6]} 39... Kf8 {[%clk 0:00:05.6]} 40. Nd5
{[%clk 0:00:28]} 40... Ke8 {[%clk 0:00:05.2]} 41. Rb7 {[%clk 0:00:25.9]} 41...
Rhg2 {[%clk 0:00:04.7]} 42. Rh1 {[%clk 0:00:22.4]} 42... Rg4 {[%clk 0:00:04.9]}
43. Nf6+ {[%clk 0:00:20.6]} 43... Kd8 {[%clk 0:00:05.4]} 44. Nxg4 {[%clk
0:00:21.5]} 44... Kc8 {[%clk 0:00:05]} 45. Rxf7 {[%clk 0:00:20.2]} 1-0

[Event "*** SCC Grand Prix: Titled Tuesday Blitz"]
[Site "Chess.com"]
[Date "2020.07.14"]
[Round "4"]
[White "Vaathi_Coming"]
[Black "GukeshDommaraju"]
[Result "0-1"]
[WhiteElo "2916"]
[BlackElo "2720"]
[TimeControl "180+1"]
[EndTime "10:39:46 PDT"]
[Termination "GukeshDommaraju won on time"]

1. g3 {[%clk 0:02:58.7]} 1... Nf6 {[%clk 0:02:58.7]} 2. Bg2 {[%clk 0:02:58.2]}
2... d5 {[%clk 0:02:59.2]} 3. d4 {[%clk 0:02:58.1]} 3... g6 {[%clk 0:02:58.5]}
4. Nf3 {[%clk 0:02:58.5]} 4... Bg7 {[%clk 0:02:58.9]} 5. O-O {[%clk 0:02:59.4]}
5... O-O {[%clk 0:02:59.4]} 6. c4 {[%clk 0:02:59.9]} 6... c6 {[%clk 0:02:59.9]}
7. b3 {[%clk 0:02:59.7]} 7... dxc4 {[%clk 0:02:54.5]} 8. bxc4 {[%clk 0:03:00.6]}
8... c5 {[%clk 0:02:55]} 9. Bb2 {[%clk 0:03:00.1]} 9... cxd4 {[%clk 0:02:55.3]}
10. Nxd4 {[%clk 0:02:59.8]} 10... Qb6 {[%clk 0:02:54.1]} 11. Qb3 {[%clk
0:02:50.4]} 11... Nfd7 {[%clk 0:02:53.6]} 12. e3 {[%clk 0:02:19.8]} 12... Nc6
{[%clk 0:02:43.1]} 13. Rd1 {[%clk 0:02:16.6]} 13... Na5 {[%clk 0:02:42.1]} 14.
Qc2 {[%clk 0:02:07.8]} 14... Nxc4 {[%clk 0:02:39.7]} 15. Qxc4 {[%clk 0:01:50.5]}
15... Qxb2 {[%clk 0:02:39.5]} 16. Nc3 {[%clk 0:01:51.1]} 16... Ne5 {[%clk
0:02:37.6]} 17. Qc7 {[%clk 0:01:50.1]} 17... Ng4 {[%clk 0:01:48.9]} 18. Ne4
{[%clk 0:01:49.6]} 18... Bxd4 {[%clk 0:01:36]} 19. exd4 {[%clk 0:01:34.8]} 19...
Bf5 {[%clk 0:01:35.8]} 20. Qc3 {[%clk 0:01:23.7]} 20... Qxc3 {[%clk 0:01:21]}
21. Nxc3 {[%clk 0:01:24.6]} 21... Rac8 {[%clk 0:01:06.8]} 22. Rac1 {[%clk
0:01:23.5]} 22... Nf6 {[%clk 0:01:00.5]} 23. Bxb7 {[%clk 0:01:03]} 23... Rc7
{[%clk 0:01:00.5]} 24. Ba6 {[%clk 0:00:51]} 24... Bc8 {[%clk 0:00:52.7]} 25. Be2
{[%clk 0:00:45.2]} 25... Bh3 {[%clk 0:00:29.7]} 26. Nb5 {[%clk 0:00:36.3]} 26...
Rd7 {[%clk 0:00:25]} 27. Bf3 {[%clk 0:00:21]} 27... a6 {[%clk 0:00:25.3]} 28.
Nc3 {[%clk 0:00:17.7]} 28... Rfd8 {[%clk 0:00:23.9]} 29. d5 {[%clk 0:00:16.7]}
29... Bg4 {[%clk 0:00:21.7]} 30. Bxg4 {[%clk 0:00:12]} 30... Nxg4 {[%clk
0:00:22.6]} 31. Rd4 {[%clk 0:00:10]} 31... Nf6 {[%clk 0:00:21.7]} 32. Rcd1
{[%clk 0:00:10.1]} 32... Kg7 {[%clk 0:00:17.6]} 33. Kg2 {[%clk 0:00:09.6]} 33...
Rd6 {[%clk 0:00:17.9]} 34. h3 {[%clk 0:00:05.9]} 34... e6 {[%clk 0:00:17.9]} 35.
Ra4 {[%clk 0:00:03.5]} 35... exd5 {[%clk 0:00:13.9]} 36. Rad4 {[%clk 0:00:03.1]}
36... Rc6 {[%clk 0:00:10.8]} 37. R4d3 {[%clk 0:00:02.2]} 37... Rc5 {[%clk
0:00:08.2]} 38. Ne2 {[%clk 0:00:01.2]} 38... Ra5 {[%clk 0:00:08.4]} 0-1

[Event "*** SCC Grand Prix: Titled Tuesday Blitz"]
[Site "Chess.com"]
[Date "2020.07.14"]
[Round "4"]
[White "Igor_Lysyj"]
[Black "FMJoseHerrera"]
[Result "0-1"]
[WhiteElo "2800"]
[BlackElo "2495"]
[TimeControl "180+1"]
[EndTime "10:39:46 PDT"]
[Termination "FMJoseHerrera won by checkmate"]

1. d4 {[%clk 0:03:00.9]} 1... Nf6 {[%clk 0:02:59.2]} 2. c4 {[%clk 0:03:00.5]}
2... c5 {[%clk 0:02:58.7]} 3. d5 {[%clk 0:02:59.9]} 3... b5 {[%clk 0:02:59]} 4.
cxb5 {[%clk 0:02:59.8]} 4... a6 {[%clk 0:02:59.6]} 5. e3 {[%clk 0:02:59]} 5...
axb5 {[%clk 0:02:59.7]} 6. Bxb5 {[%clk 0:02:58.4]} 6... Qa5+ {[%clk 0:03:00.4]}
7. Nc3 {[%clk 0:02:58.1]} 7... Bb7 {[%clk 0:03:01]} 8. Bd2 {[%clk 0:02:55.4]}
8... Qb6 {[%clk 0:03:00.7]} 9. Nf3 {[%clk 0:02:52.8]} 9... Nxd5 {[%clk
0:02:50.2]} 10. a4 {[%clk 0:02:52.3]} 10... Nb4 {[%clk 0:02:47.8]} 11. O-O
{[%clk 0:02:49.3]} 11... g6 {[%clk 0:02:42.4]} 12. e4 {[%clk 0:02:48.2]} 12...
Bg7 {[%clk 0:02:40.5]} 13. Bg5 {[%clk 0:02:33]} 13... e6 {[%clk 0:02:11.9]} 14.
Nd2 {[%clk 0:02:28.9]} 14... O-O {[%clk 0:01:47.1]} 15. Nc4 {[%clk 0:02:25.6]}
15... Qa7 {[%clk 0:01:39]} 16. e5 {[%clk 0:01:54.5]} 16... N8c6 {[%clk
0:01:00.1]} 17. Qxd7 {[%clk 0:01:43.9]} 17... Nxe5 {[%clk 0:00:56]} 18. Nxe5
{[%clk 0:01:43.4]} 18... Bxe5 {[%clk 0:00:56.9]} 19. Rfe1 {[%clk 0:00:58.5]}
19... Bg7 {[%clk 0:00:56.3]} 20. Rac1 {[%clk 0:00:49.9]} 20... Ba6 {[%clk
0:00:41.9]} 21. Qxa7 {[%clk 0:00:33.8]} 21... Rxa7 {[%clk 0:00:42.8]} 22. Red1
{[%clk 0:00:28.7]} 22... Bxb5 {[%clk 0:00:33.4]} 23. axb5 {[%clk 0:00:28.4]}
23... Rb7 {[%clk 0:00:31.7]} 24. Be3 {[%clk 0:00:27.4]} 24... c4 {[%clk
0:00:31.2]} 25. Rd6 {[%clk 0:00:23.3]} 25... Nd3 {[%clk 0:00:30.9]} 26. Rc2
{[%clk 0:00:22.9]} 26... Nxb2 {[%clk 0:00:31]} 27. b6 {[%clk 0:00:20.5]} 27...
Nd3 {[%clk 0:00:30.4]} 28. g3 {[%clk 0:00:20]} 28... Nb4 {[%clk 0:00:30.1]} 29.
Rc1 {[%clk 0:00:18.9]} 29... Nd3 {[%clk 0:00:30.4]} 30. Rc2 {[%clk 0:00:18.8]}
30... Ra8 {[%clk 0:00:28.6]} 31. h4 {[%clk 0:00:14.7]} 31... Ra1+ {[%clk
0:00:28.5]} 32. Kh2 {[%clk 0:00:14.6]} 32... Be5 {[%clk 0:00:27.3]} 33. Rd8+
{[%clk 0:00:13.9]} 33... Kg7 {[%clk 0:00:27.8]} 34. Ne4 {[%clk 0:00:13.8]} 34...
h6 {[%clk 0:00:24.5]} 35. Rxc4 {[%clk 0:00:13.6]} 35... Ra2 {[%clk 0:00:20.6]}
36. Rcc8 {[%clk 0:00:13]} 36... Kh7 {[%clk 0:00:18.1]} 37. Nd6 {[%clk 0:00:13]}
37... Bxd6 {[%clk 0:00:16.7]} 38. Rxd6 {[%clk 0:00:11.7]} 38... Nxf2 {[%clk
0:00:17]} 39. Kg1 {[%clk 0:00:11.7]} 39... Ng4 {[%clk 0:00:15.2]} 40. Bd4 {[%clk
0:00:11.8]} 40... e5 {[%clk 0:00:15.7]} 41. Bc5 {[%clk 0:00:12]} 41... Rc2
{[%clk 0:00:15.1]} 42. Rdc6 {[%clk 0:00:10.5]} 42... Rc1+ {[%clk 0:00:14.8]} 43.
Kg2 {[%clk 0:00:10]} 43... Rd7 {[%clk 0:00:14.3]} 44. Kf3 {[%clk 0:00:09.2]}
44... Nh2+ {[%clk 0:00:14.2]} 45. Ke2 {[%clk 0:00:09.5]} 45... Rc2+ {[%clk
0:00:13.8]} 46. Ke1 {[%clk 0:00:09.5]} 46... Nf3+ {[%clk 0:00:14.2]} 47. Kf1
{[%clk 0:00:09.8]} 47... Rd1# {[%clk 0:00:14.8]} 0-1

[Event "*** SCC Grand Prix: Titled Tuesday Blitz"]
[Site "Chess.com"]
[Date "2020.07.14"]
[Round "4"]
[White "DanielTitichoca"]
[Black "karinachess1"]
[Result "0-1"]
[WhiteElo "2332"]
[BlackElo "2514"]
[TimeControl "180+1"]
[EndTime "10:39:46 PDT"]
[Termination "karinachess1 won on time"]

1. d4 {[%clk 0:03:00.9]} 1... Nf6 {[%clk 0:02:58]} 2. Nf3 {[%clk 0:03:01.8]}
2... e6 {[%clk 0:02:56.5]} 3. Bf4 {[%clk 0:03:02.1]} 3... d5 {[%clk 0:02:55.1]}
4. e3 {[%clk 0:03:03]} 4... Bd6 {[%clk 0:02:54.9]} 5. Bg3 {[%clk 0:02:58.8]}
5... c5 {[%clk 0:02:54.6]} 6. c3 {[%clk 0:02:56.7]} 6... O-O {[%clk 0:02:54.5]}
7. Nbd2 {[%clk 0:02:55.6]} 7... Qc7 {[%clk 0:02:54.7]} 8. Bd3 {[%clk 0:02:53.6]}
8... Nbd7 {[%clk 0:02:53.8]} 9. Qe2 {[%clk 0:02:36.1]} 9... e5 {[%clk
0:02:49.6]} 10. dxe5 {[%clk 0:02:35.5]} 10... Nxe5 {[%clk 0:02:50.5]} 11. Nxe5
{[%clk 0:02:35.8]} 11... Bxe5 {[%clk 0:02:51.4]} 12. Nf3 {[%clk 0:02:35.2]}
12... Bd6 {[%clk 0:02:44.4]} 13. O-O-O {[%clk 0:02:27.3]} 13... a6 {[%clk
0:02:21.1]} 14. Bh4 {[%clk 0:02:02.8]} 14... Be7 {[%clk 0:02:16.3]} 15. Bg3
{[%clk 0:01:58.1]} 15... Qa5 {[%clk 0:02:13]} 16. Kb1 {[%clk 0:01:56.7]} 16...
b5 {[%clk 0:02:11.4]} 17. Ne5 {[%clk 0:01:54.7]} 17... Bb7 {[%clk 0:02:07.9]}
18. Bh4 {[%clk 0:01:51.8]} 18... Qc7 {[%clk 0:01:51.7]} 19. f4 {[%clk
0:01:43.6]} 19... b4 {[%clk 0:01:26.9]} 20. cxb4 {[%clk 0:01:39.1]} 20... cxb4
{[%clk 0:01:22.7]} 21. Rc1 {[%clk 0:01:38.3]} 21... Qd6 {[%clk 0:01:22.8]} 22.
Bg5 {[%clk 0:01:21.9]} 22... a5 {[%clk 0:01:12.3]} 23. Qf3 {[%clk 0:01:05.4]}
23... Ne4 {[%clk 0:00:56.8]} 24. Bxe7 {[%clk 0:01:00.9]} 24... Qxe7 {[%clk
0:00:54.4]} 25. Bxe4 {[%clk 0:00:55.4]} 25... dxe4 {[%clk 0:00:55.3]} 26. Qe2
{[%clk 0:00:55.1]} 26... f6 {[%clk 0:00:50.3]} 27. Ng4 {[%clk 0:00:43.4]} 27...
Ba6 {[%clk 0:00:47.8]} 28. Qf2 {[%clk 0:00:39.7]} 28... Bd3+ {[%clk 0:00:47.8]}
29. Ka1 {[%clk 0:00:38.8]} 29... a4 {[%clk 0:00:47.5]} 30. f5 {[%clk 0:00:35.1]}
30... a3 {[%clk 0:00:46.5]} 31. h4 {[%clk 0:00:12.9]} 31... b3 {[%clk
0:00:43.5]} 32. bxa3 {[%clk 0:00:07.8]} 32... h5 {[%clk 0:00:42.7]} 33. Qb2
{[%clk 0:00:04.5]} 33... hxg4 {[%clk 0:00:41.6]} 34. Qxb3+ {[%clk 0:00:05.4]}
34... Rf7 {[%clk 0:00:37.6]} 35. h5 {[%clk 0:00:04.5]} 35... Qe5+ {[%clk
0:00:37.1]} 36. Qb2 {[%clk 0:00:02.3]} 36... Qxb2+ {[%clk 0:00:33.4]} 37. Kxb2
{[%clk 0:00:03.2]} 37... Rb7+ {[%clk 0:00:34]} 38. Ka1 {[%clk 0:00:04.1]} 38...
Rxa3 {[%clk 0:00:32.7]} 39. h6 {[%clk 0:00:04.9]} 39... gxh6 {[%clk 0:00:20.4]}
40. Rxh6 {[%clk 0:00:05.8]} 40... Rba7 {[%clk 0:00:17.2]} 41. Rg6+ {[%clk
0:00:03]} 41... Kf7 {[%clk 0:00:17.2]} 42. Rc7+ {[%clk 0:00:01.6]} 42... Rxc7
{[%clk 0:00:15.7]} 0-1